fUST/lending_fUST_20250927
["ID","MTS","AMOUNT","RATE_DAILY","PERIOD"]
[388004099,1758958667796,-500.0,0.00023659,2]
[388004100,1758958667830,-500.0,0.00023659,2]
[388004101,1758958667861,-408.11986872,0.00023659,2]
[388004102,1758958667892,-500.0,0.00023659,2]
[388004103,1758958667921,-494.97521986,0.00023659,2]
[388004104,1758958667953,-500.0,0.00023659,2]
[388004105,1758958667984,-500.0,0.00023659,2]
[388004106,1758958668043,-500.0,0.00023659,2]
[388004107,1758958668075,-500.0,0.00023659,2]
[388004108,1758958668108,-500.0,0.00023659,2]
[388004109,1758958668140,-500.0,0.00023659,2]
[388004110,1758958668173,-500.0,0.00023659,2]
[388004111,1758958668208,-500.0,0.00023659,2]
[388004112,1758958668242,-500.0,0.00023659,2]
[388004113,1758958668275,-500.0,0.00023659,2]
[388004114,1758958668307,-500.0,0.00023659,2]
[388004115,1758958668347,-500.0,0.00023659,2]
[388004116,1758958668445,-500.0,0.00023659,2]
[388004117,1758958668479,-500.0,0.00023659,2]
[388004118,1758958668514,-500.0,0.00023659,2]
[388004119,1758958668547,-500.0,0.00023659,2]
[388004120,1758958668581,-500.0,0.00023659,2]
[388004121,1758958668614,-500.0,0.00023659,2]
[388004122,1758958668647,-500.0,0.00023659,2]
[388004123,1758958668680,-500.0,0.00023659,2]
[388004124,1758958668711,-500.0,0.00023659,2]
[388004125,1758958668743,-500.0,0.00023659,2]
[388004126,1758958668892,-500.0,0.00023659,2]
[388004127,1758958668923,-500.0,0.00023659,2]
[388004128,1758958668955,-500.0,0.00023659,2]
[388004129,1758958668987,-500.0,0.00023659,2]
[388004130,1758958669019,-500.0,0.00023659,2]
[388004131,1758958669050,-500.0,0.00023659,2]
[388004132,1758958669080,-500.0,0.00023659,2]
[388004133,1758958669112,-631.89587658,0.00023659,2]
[388004134,1758958669143,-500.0,0.00023659,2]
[388004135,1758958669174,-236.21824684,0.00023659,2]
[388004136,1758958670757,-263.78175316,0.00023659,2]
[388004137,1758958670766,-142.75443171,0.00023659,2]
[388004138,1758958670782,-357.24556829,0.00023659,2]
[388004139,1758958670791,-142.75443171,0.00023659,2]
[388004140,1758958670806,-357.24556829,0.00023659,2]
[388004141,1758958670815,-142.75443171,0.00023659,2]
[388004142,1758958675544,-357.24556829,0.00023659,2]
[388004143,1758958675577,-500.0,0.00023659,2]
[388004144,1758958675609,-500.0,0.00023659,2]
[388004145,1758958675642,-500.0,0.00023659,2]
[388004146,1758958675672,-500.0,0.00023659,2]
[388004147,1758958675706,-500.0,0.00023659,2]
[388004148,1758958675738,-500.0,0.00023659,2]
[388004149,1758958675769,-500.0,0.00023659,2]
[388004150,1758958675799,-500.0,0.00023659,2]
[388004151,1758958675831,-500.0,0.00023659,2]
[388004152,1758958675992,-500.0,0.00023659,2]
[388004153,1758958676023,-500.0,0.00023659,2]
[388004154,1758958676055,-500.0,0.00023659,2]
[388004155,1758958676086,-500.0,0.00023659,2]
[388004156,1758958676118,-500.0,0.00023659,2]
[388004157,1758958679798,184.56,0.0001812,5]
[388004158,1758958679887,331.85844693,0.00023659,2]
[388004159,1758958680078,184.55,0.0001812,5]
[388004160,1758958680861,4299.04155307,0.00023659,2]
[388004161,1758958680886,700.95844693,0.00023659,2]
[388004162,1758958685784,-559.0,0.0002366,2]
[388004163,1758958685813,-221.0,0.00023899,2]
[388004164,1758958685842,-173.0,0.00023899,2]
[388004165,1758958685873,-300.0,0.00023899,2]
[388004166,1758958685902,-195.53457271,0.000239,2]
[388004167,1758958685932,-500.0,0.00023933,2]
[388004168,1758958685973,-300.81220933,0.00023999,2]
[388004169,1758958686004,-173.41214007,0.00023999,2]
[388004170,1758958686034,-300.0,0.00023999,2]
[388004171,1758958686063,-150.0,0.00024,2]
[388004172,1758958686092,-300.0,0.00024,2]
[388004173,1758958686121,-300.0,0.00024,2]
[388004174,1758958686149,-300.0,0.00024,2]
[388004175,1758958686178,-500.0,0.00024,2]
[388004176,1758958686782,-5785.14537374,0.00024,2]
[388004177,1758958686827,-10000.01,0.00024,2]
[388004178,1758958686862,-10000.01,0.00024,2]
[388004179,1758958687094,-10000.01,0.00024,2]
[388004180,1758958695621,-4933.51743395,0.00019965,2]
[388004181,1758958699508,-5000.0,0.0002376,13]
[388004182,1758958699549,-0.01,0.00024,2]
[388004183,1758958710608,-5000.0,0.0002376,13]
[388004184,1758958713397,0.01,0.0002376,2]
[388004185,1758958713427,4999.99,0.0002376,2]
[388004186,1758958718937,-290.6963282,0.00023999,2]
[388004187,1758958718968,-500.0,0.00023999,2]
[388004188,1758958718998,-378.52741527,0.00023999,2]
[388004189,1758958719030,-500.0,0.00023999,2]
[388004190,1758958719062,-500.0,0.00023999,2]
[388004191,1758958719094,-500.0,0.00023999,2]
[388004192,1758958719125,-500.0,0.00023999,2]
[388004193,1758958719157,-204.69243732,0.00023999,2]
[388004194,1758958728776,-421.69227282,0.00023899,4]
[388004195,1758958728918,5000.0,0.0002376,2]
[388004196,1758958735284,1058.1722644,0.0002378,12]
[388004197,1758958737517,3098.45318996,0.00023899,2]
[388004198,1758958737541,1901.54681004,0.00023899,2]
[388004199,1758958745592,-300.0,0.00023999,2]
[388004200,1758958753268,5000.0,0.00023999,2]
[388004201,1758958755728,-224.45236786,0.00024017,12]
[388004202,1758958761196,5000.0,0.00024017,2]
[388004203,1758958773381,422.33,0.00023999,2]
[388004204,1758958776622,4128.77526428,0.00024017,2]
[388004205,1758958776646,871.22473572,0.00024017,2]
[388004206,1758958785368,5000.0,0.00024017,2]
[388004207,1758958800751,4128.78526428,0.00024017,2]
[388004208,1758958800776,871.21473572,0.00024017,2]
[388004209,1758958803950,364.64169477,0.00024,2]
[388004210,1758958808835,5000.0,0.00024017,2]
[388004211,1758958817112,3298.05701333,0.00024017,2]
[388004212,1758958825830,466.09655618,0.00024017,2]
[388004213,1758958825855,4533.90344382,0.00024017,2]
[388004214,1758958834106,5000.0,0.00024017,2]
[388004215,1758958849647,466.10655618,0.00024017,2]
[388004216,1758958849672,4533.89344382,0.00024017,2]
[388004217,1758958857660,5000.0,0.00024017,2]
[388004218,1758958866449,466.11655618,0.00024017,2]
[388004219,1758958866472,3737.33447968,0.00024017,2]
[388004220,1758958875013,5000.0,0.00024017,2]
[388004221,1758958880715,-666.0,0.00024114,2]
[388004222,1758958884142,5000.0,0.00024017,2]
[388004223,1758958907135,3668.01,0.00024114,2]
[388004224,1758958907160,1331.99,0.00024114,2]
[388004225,1758958930507,5000.0,0.00024114,2]
[388004226,1758958930772,-5000.0,0.00024563,2]
[388004227,1758958930923,-267.92990458,0.00024563,2]
[388004228,1758958946043,5000.0,0.00024563,2]
[388004229,1758958954044,4464.15019084,0.00024563,2]
[388004230,1758958954073,535.84980916,0.00024563,2]
[388004231,1758958969947,5000.0,0.00024563,2]
[388004232,1758958977892,4464.16019084,0.00024563,2]
[388004233,1758958977917,535.83980916,0.00024563,2]
[388004234,1758958993540,5000.0,0.00024563,2]
[388004235,1758959001462,882.0158846,0.00024563,2]
[388004236,1758959016960,3582.15430624,0.00024563,2]
[388004237,1758959016985,1417.84569376,0.00024563,2]
[388004238,1758959022537,161.0,0.000245,2]
[388004239,1758959023475,161.0,0.000245,2]
[388004240,1758959024495,161.0,0.000245,2]
[388004241,1758959027663,161.0,0.000245,3]
[388004242,1758959028605,161.0,0.000245,3]
[388004243,1758959031943,-241.57,0.000249,2]
[388004244,1758959031969,-182.3483814,0.00025151,15]
[388004245,1758959032656,-118.20299811,0.00025151,15]
[388004246,1758959032679,-34.77702589,0.00025989,30]
[388004247,1758959052090,840.38519422,0.00019965,2]
[388004248,1758959055958,-5000.0,0.00024953,2]
[388004249,1758959057084,161.0,0.000287,120]
[388004250,1758959057741,161.0,0.000287,120]
[388004251,1758959058369,161.0,0.000287,120]
[388004252,1758959063990,0.01,0.00024953,2]
[388004253,1758959064014,4999.99,0.00024953,2]
[388004254,1758959086625,5000.0,0.00024953,2]
[388004255,1758959094749,0.02,0.00024953,2]
[388004256,1758959094778,3334.25397429,0.00024953,2]
[388004257,1758959110312,5000.0,0.00024953,2]
[388004258,1758959118848,1665.75602571,0.00024953,2]
[388004259,1758959119075,1668.51794858,0.00024953,2]
[388004260,1758959124373,165.56824728,0.000249,3]
[388004261,1758959134491,5000.0,0.00024953,2]
[388004262,1758959139118,-1299.71411924,0.00025122,2]
[388004263,1758959143096,3061.24923178,0.00024953,2]
[388004264,1758959158700,104.67457236,0.00024953,2]
[388004265,1758959158726,4895.32542764,0.00024953,2]
[388004266,1758959208311,-1831.19899738,0.00025122,2]
[388004268,1758959222566,5000.0,0.00024953,2]
[388004269,1758959223784,165.4343832,0.00024975,120]
[388004270,1758959226650,-713.3066157,0.00025174,2]
[388004271,1758959226670,-275.40503514,0.00025204,2]
[388004272,1758959233764,-421.844944,0.00025063,2]
[388004273,1758959235333,-907.83845941,0.00025204,2]
[388004274,1758959242510,-1431.45296105,0.00025204,2]
[388004275,1758959242554,-1000.0,0.00025223,2]
[388004276,1758959242600,-4273.2264416,0.00025266,2]
[388004277,1758959242645,-165.75942421,0.00025989,30]
[388004278,1758959242690,-306.002265,0.00026027,2]
[388004279,1758959242729,-200.0,0.0002608,15]
[388004280,1758959242755,-323.0,0.00026247,19]
[388004281,1758959242791,-598.834691,0.00026252,2]
[388004282,1758959242825,-174.690979,0.00026282,2]
[388004283,1758959242846,-1200.0,0.00026364,2]
[388004284,1758959242870,-37350.80146437,0.00026365,2]
[388004285,1758959242890,-1187.74681421,0.00026365,2]
[388004286,1758959242912,-1200.0,0.00026371,2]
[388004287,1758959242935,-343.65130618,0.00026372,2]
[388004288,1758959242957,-428.62820262,0.00026372,2]
[388004289,1758959242977,-219.2905557,0.00026372,2]
[388004290,1758959242999,-443.90411882,0.00026372,2]
[388004291,1758959243020,-210.56854653,0.00026464,2]
[388004292,1758959243039,-300.0,0.00026464,2]
[388004293,1758959243063,-5000.0,0.00026465,2]
[388004294,1758959243082,-500.0,0.00026473,2]
[388004295,1758959243102,-500.0,0.00026473,2]
[388004296,1758959243122,-500.0,0.00026473,2]
[388004297,1758959243141,-500.0,0.00026473,2]
[388004298,1758959243160,-280.38835653,0.00026473,2]
[388004299,1758959243180,-501.37962426,0.00026473,2]
[388004300,1758959243200,-1000.0,0.00027021,2]
[388004301,1758959243220,-759.28911623,0.00027021,2]
[388004302,1758959243239,-1000.0,0.00027021,2]
[388004303,1758959243258,-1113.83341633,0.00027021,2]
[388004304,1758959243277,-1500.0,0.00027568,5]
[388004305,1758959243296,-1500.0,0.00027568,5]
[388004306,1758959243315,-2000.0,0.00028116,5]
[388004307,1758959243335,-1754.72687456,0.00028116,5]
[388004308,1758959243356,-1187.74681421,0.00028219,2]
[388004309,1758959243376,-421.844944,0.00028488,60]
[388004310,1758959243395,-1680.0,0.00028521,2]
[388004311,1758959243416,-187.53399153,0.00028646,20]
[388004312,1758959243436,-2500.0,0.00028664,5]
[388004313,1758959243456,-500.0,0.00028973,5]
[388004314,1758959243475,-601.31019936,0.00028973,5]
[388004315,1758959243495,-501.19887383,0.00028973,5]
[388004316,1758959243513,-501.49119954,0.00028973,5]
[388004317,1758959243533,-500.0,0.00028973,5]
[388004318,1758959243552,-457.89,0.0002898,3]
[388004319,1758959243573,-228.94,0.0002898,3]
[388004320,1758959243594,-686.85,0.0002898,3]
[388004321,1758959243613,-16548.3976815,0.0002898,2]
[388004322,1758959243632,-543.96754268,0.0002898,2]
[388004323,1758959243652,-731.2,0.00029202,10]
[388004324,1758959243672,-2206.92078885,0.00029212,5]
[388004325,1758959243692,-311.4000447,0.00029247,5]
[388004326,1758959243713,-688.59067012,0.0002934,2]
[388004327,1758959243735,-5947.44326359,0.0002934,2]
[388004328,1758959243756,-426.59,0.0002942,3]
[388004329,1758959243776,-148935.579133,0.0002943,2]
[388004330,1758959243797,-4895.70788412,0.0002943,2]
[388004331,1758959243819,-224783.63527856,0.0002944,2]
[388004332,1758959243856,-533.3687323,0.0002944,2]
[388004333,1758959244729,5000.0,0.00025063,2]
[388004334,1758959252947,4156.320112,0.00025063,2]
[388004335,1758959252972,843.679888,0.00025063,2]
[388004336,1758959268478,5000.0,0.00025063,2]
[388004337,1758959276476,4156.330112,0.00025063,2]
[388004338,1758959276503,843.669888,0.00025063,2]
[388004385,1758959292559,5000.0,0.00025063,2]
[388004397,1758959300624,4156.340112,0.00025063,2]
[388004398,1758959300647,843.659888,0.00025063,2]
[388004399,1758959316209,5000.0,0.00025063,2]
[388004400,1758959324453,3056.45081764,0.00025063,2]
[388004401,1758959330861,300.0,0.00024,2]
[388004402,1758959336036,161.0,9e-07,2]
[388004403,1758959340244,638.89929436,0.00025063,2]
[388004404,1758959340270,4361.10070564,0.00025063,2]
[388004405,1758959342860,300.0,0.00024,2]
[388004406,1758959348172,2614.75290246,0.00025063,2]
[388004407,1758959356333,2724.1563919,0.00025063,2]
[388004408,1758959356357,861.57314664,0.00025063,2]
[388004409,1758959357340,-300.0,0.000251,2]
[388004410,1758959357369,-300.0,0.000251,2]
[388004411,1758959357396,-300.0,0.000251,2]
[388004412,1758959357425,-195.53457271,0.00025103,2]
[388004413,1758959357454,-300.0,0.00025342,2]
[388004414,1758959357486,-500.0,0.00025343,2]
[388004415,1758959357514,-300.0,0.00025343,2]
[388004416,1758959357543,-500.0,0.00025343,2]
[388004417,1758959357572,-560.58923575,0.00025343,2]
[388004418,1758959357601,-500.0,0.00025343,2]
[388004419,1758959357633,-500.0,0.00025343,2]
[388004420,1758959357664,-324.12761237,0.00025343,2]
[388004421,1758959357897,300.0,0.00024,2]
[388004422,1758959358102,-12964.349309,0.00025344,2]
[388004423,1758959358123,-7052.9466352,0.00025426,2]
[388004424,1758959358144,-380.0,0.00025439,2]
[388004425,1758959358165,-420.0,0.00027444,2]
[388004426,1758959358185,-3577.3692654,0.0002799,2]
[388004427,1758959360107,-95929.69365467,0.0002799,2]
[388004428,1758959369550,-300.0,0.00024,2]
[388004429,1758959369583,-4400.01,0.00024953,13]
[388004430,1758959369836,-599.99,0.00024953,13]
[388004431,1758959370074,-300.0,0.000251,2]
[388004432,1758959370097,-429.44522474,0.00025343,2]
[388004433,1758959370118,-492.93707993,0.0002799,2]
[388004434,1758959370138,-1172.521512,0.00028927,2]
[388004435,1758959372578,55.09618333,0.00024953,2]
[388004436,1758959372604,3321.32177081,0.00024953,2]
[388004437,1758959380495,5000.0,0.00024953,2]
[388004438,1758959388622,478.70822919,0.00024953,2]
[388004439,1758959388649,4521.29177081,0.00024953,2]
[388004440,1758959404865,4665.7005443,0.00024953,2]
[388004442,1758959413029,813.01768489,0.00024953,2]
[388004443,1758959413056,4186.98231511,0.00024953,2]
[388004444,1758959421384,3916.00973728,0.00024953,2]
[388004445,1758959425747,167.19295,0.00013819,2]
[388004527,1758959432629,-59.26319248,0.000251,2]
[388004529,1758959432641,-240.73680752,0.000251,2]
[388004531,1758959432650,-500.0,0.00025343,2]
[388004533,1758959432660,-406.61331176,0.00027373,2]
[388004535,1758959432669,-315.0,0.00028986,32]
[388004537,1758959432678,-731.90396118,0.00029003,2]
[388004539,1758959432688,-952.79863174,0.0002924,2]
[388004541,1758959432697,-174.11170204,0.0002924,2]
[388004543,1758959432706,-300.0,0.00029339,2]
[388004570,1758959432998,-550.87253612,0.0002934,2]
[388004572,1758959433018,-176.73301862,0.0002934,2]
[388004573,1758959433039,-4683.22907406,0.0002934,2]
[388004574,1758959433051,-228.94,0.0002943,3]
[388004575,1758959433061,-686.84,0.0002943,3]
[388004576,1758959433071,-658.01844446,0.00029439,2]
[388004577,1758959433080,-119358.16778039,0.0002944,2]
[388004578,1758959433092,-49365.93828131,0.0002944,2]
[388004579,1758959433103,-36241.23801942,0.0002944,2]
[388004580,1758959433114,-88391.5492545,0.0002944,2]
[388004592,1758959436881,1729.82499761,0.00024953,2]
[388004593,1758959436906,3270.17500239,0.00024953,2]
[388004594,1758959438511,-100.87093993,0.00029338,2]
[388004595,1758959438651,-149.12906007,0.00029338,2]
[388004596,1758959438661,-750101.10265352,0.0002944,2]
[388004597,1758959438670,-1384.667,0.0002944,120]
[388004598,1758959438680,-1558.988,0.0002944,120]
[388004599,1758959438689,-643.8,0.0002944,10]
[388004600,1758959438698,-200.0,0.0002944,10]
[388004601,1758959438707,-200.0,0.0002944,10]
[388004602,1758959438717,-200.0,0.0002944,10]
[388004603,1758959438726,-175.555695,0.0002944,10]
[388004604,1758959438735,-500.0,0.00029473,5]
[388004605,1758959438745,-500.0,0.00029473,5]
[388004606,1758959438755,-485.7374942,0.00029473,5]
[388004607,1758959438764,-501.15878454,0.00029473,5]
[388004608,1758959438774,-500.0,0.00029473,5]
[388004609,1758959438784,-500.0,0.00029473,5]
[388004610,1758959438798,-512.24691548,0.00029473,2]
[388004611,1758959438808,-500.0,0.00029473,5]
[388004612,1758959438818,-500.0,0.00029473,5]
[388004613,1758959438827,-501.84917034,0.00029473,5]
[388004614,1758959438839,-500.0,0.00029473,5]
[388004615,1758959438848,-506.73248982,0.00029473,5]
[388004616,1758959438857,-500.0,0.00029473,5]
[388004617,1758959438868,-500.0,0.00029473,5]
[388004618,1758959438877,-500.0,0.00029473,5]
[388004619,1758959438886,-501.34391062,0.00029473,5]
[388004620,1758959438895,-500.0,0.00029473,5]
[388004621,1758959438904,-3486.53,0.000295,2]
[388004622,1758959438914,-550.87253609,0.0002984,2]
[388004623,1758959438923,-558.65318392,0.00029975,2]
[388004624,1758959438933,-1005.57573106,0.00029975,2]
[388004625,1758959438942,-1000.0,0.00030021,5]
[388004626,1758959438951,-1000.0,0.00030021,5]
[388004627,1758959438961,-1000.0,0.00030021,5]
[388004628,1758959438970,-1000.0,0.00030021,5]
[388004629,1758959438980,-549.90401721,0.00030021,5]
[388004630,1758959438989,-501.41425219,0.00030021,5]
[388004631,1758959438999,-1000.0,0.00030021,5]
[388004632,1758959439009,-500.0,0.00030021,5]
[388004633,1758959439019,-1000.0,0.00030021,5]
[388004634,1758959439028,-1000.0,0.00030021,5]
[388004635,1758959439038,-296.33432936,0.00030021,5]
[388004636,1758959439047,-1000.0,0.00030136,120]
[388004637,1758959439056,-154.93,0.00030173,15]
[388004638,1758959439065,-1000.0,0.00030273,120]
[388004639,1758959439075,-550.87253609,0.0003034,2]
[388004640,1758959439084,-4683.22907405,0.0003034,2]
[388004641,1758959439093,-1000.0,0.0003041,120]
[388004642,1758959439103,-1000.0,0.00030547,120]
[388004643,1758959439112,-1500.0,0.00030568,5]
[388004644,1758959439122,-1500.0,0.00030568,5]
[388004645,1758959439131,-1404.2961185,0.00030568,5]
[388004646,1758959439141,-502.65583211,0.00030568,5]
[388004647,1758959439151,-1500.0,0.00030568,5]
[388004648,1758959439160,-1500.0,0.00030568,5]
[388004649,1758959439170,-1500.0,0.00030568,5]
[388004650,1758959439180,-1301.16259765,0.00030634,2]
[388004651,1758959439189,-952.79863174,0.00030683,2]
[388004652,1758959439199,-1000.0,0.00030684,120]
[388004653,1758959439208,-246.96210869,0.00030707,2]
[388004654,1758959439218,-457.88,0.000308,3]
[388004655,1758959439227,-1000.0,0.00030821,120]
[388004656,1758959439237,-550.87253609,0.0003084,2]
[388004657,1758959439247,-260.0,0.0003084,2]
[388004658,1758959439257,-2351.0,0.00030854,2]
[388004659,1758959439267,-417.0,0.00030882,2]
[388004660,1758959439277,-293.67803514,0.00030902,2]
[388004661,1758959439286,-360.82752295,0.00030902,2]
[388004662,1758959439296,-637.47436876,0.00030902,2]
[388004663,1758959439305,-1147.45386377,0.00030902,2]
[388004664,1758959439315,-674.45536964,0.00030902,2]
[388004665,1758959439326,-1214.01966536,0.00030902,2]
[388004666,1758959439335,-2158.25718286,0.00030902,2]
[388004667,1758959439344,-323.32084485,0.00030902,2]
[388004668,1758959439354,-369.14002743,0.00030902,2]
[388004669,1758959439363,-240.0,0.00030958,120]
[388004670,1758959439372,-418.35897913,0.00031116,5]
[388004671,1758959439382,-2003.23558128,0.00031116,5]
[388004672,1758959439392,-2000.0,0.00031116,5]
[388004673,1758959439401,-500.0,0.00031116,5]
[388004674,1758959439410,-2000.0,0.00031116,5]
[388004675,1758959439420,-550.87253609,0.0003134,2]
[388004676,1758959439430,-4683.22907405,0.0003134,2]
[388004677,1758959439439,-80993.25986398,0.0003143,30]
[388004678,1758959439449,-500.0,0.00031433,5]
[388004679,1758959439459,-861.28,0.00031435,5]
[388004680,1758959439468,-160.91597898,0.00031439,10]
[388004681,1758959439477,-8937.76306712,0.0003144,3]
[388004682,1758959439486,-3483.3582438,0.0003144,2]
[388004688,1758959440511,-53971.26816309,0.0003144,2]
[388004689,1758959440525,-2793.47099713,0.0003144,2]
[388004690,1758959440537,-23648.33844731,0.0003144,2]
[388004691,1758959440548,-560.22086168,0.0003144,2]
[388004692,1758959440714,-1316.66425515,0.0003144,2]
[388004915,1758959443246,-771.40376417,0.0003144,2]
[388004918,1758959443260,-438.34586255,0.0003144,2]
[388004932,1758959443390,-597.81919956,0.0003144,2]
[388004975,1758959444757,5000.0,0.00025205,2]
[388004982,1758959447138,-600.0,0.0003144,2]
[388004983,1758959452912,3871.05264081,0.00025205,2]
[388004984,1758959461279,1128.95735919,0.00025205,2]
[388004985,1758959461304,3871.04264081,0.00025205,2]
[388004986,1758959464060,160.0,0.00025205,2]
[388004987,1758959469477,5000.0,0.00025205,2]
[388004988,1758959482315,968.96735919,0.00025205,2]
[388004989,1758959482338,784.11500278,0.00025205,2]
[388004990,1758959485660,5000.0,0.00025205,2]
[388004991,1758959497437,2589.71221795,0.000252,2]
[388004992,1758959501178,1414.27046146,0.00025205,2]
[388004993,1758959509258,211.91231781,0.00025205,2]
[388004994,1758959509284,4788.08768219,0.00025205,2]
[388004995,1758959517677,5000.0,0.00025205,2]
[388004996,1758959533045,211.92231781,0.00025205,2]
[388004997,1758959533074,4788.07768219,0.00025205,2]
[388004998,1758959541268,5000.0,0.00025205,2]
[388004999,1758959557022,211.93231781,0.00025205,2]
[388005000,1758959557048,4788.06768219,0.00025205,2]
[388005001,1758959564960,5000.0,0.00025205,2]
[388005002,1758959580346,5000.0,0.00025205,2]
[388005003,1758959588255,0.01,0.00025205,2]
[388005004,1758959588282,253.020577,0.00025205,2]
[388005005,1758959604201,5000.0,0.00025205,2]
[388005006,1758959626886,4746.989423,0.00025205,2]
[388005007,1758959626912,253.010577,0.00025205,2]
[388005008,1758959635573,5000.0,0.00025205,2]
[388005009,1758959639833,-271.9183814,0.00026465,2]
[388005010,1758959651307,4746.999423,0.00025205,2]
[388005011,1758959651332,253.000577,0.00025205,2]
[388005013,1758959674599,5000.0,0.00025205,2]
[388005014,1758959697255,5000.0,0.00025205,2]
[388005015,1758959705765,5000.0,0.00025205,2]
[388005016,1758959720972,0.01,0.00025205,2]
[388005017,1758959721000,4999.99,0.00025205,2]
[388005018,1758959729361,5000.0,0.00025205,2]
[388005019,1758959745036,0.02,0.00025205,2]
[388005020,1758959745065,4999.98,0.00025205,2]
[388005021,1758959753197,5000.0,0.00025205,2]
[388005022,1758959768747,0.03,0.00025205,2]
[388005023,1758959768776,4140.49674696,0.00025205,2]
[388005024,1758959776690,2423.24584396,0.00019965,2]
[388005025,1758959776755,3436.26740908,0.00025205,2]
[388005026,1758959776781,1563.73259092,0.00025205,2]
[388005027,1758959792162,5000.0,0.00025205,2]
[388005028,1758959800098,3436.27740908,0.00025205,2]
[388005029,1758959800121,1563.72259092,0.00025205,2]
[388005030,1758959808883,560.84532687,0.00025205,2]
[388005031,1758959816768,2814.73631022,0.00025205,2]
[388005057,1758959820333,269.7412961,0.00025205,2]
[388005058,1758959825519,4790.96447589,0.00025205,2]
[388005059,1758959825552,209.03552411,0.00025205,2]
[388005060,1758959848852,5000.0,0.00025205,2]
[388005061,1758959871777,2728.13211974,0.00025205,2]
[388005063,1758959887814,2062.84235615,0.00025205,2]
[388005064,1758959887841,763.20843049,0.00025205,2]
[388005065,1758959900557,1990.41973489,0.000252,2]
[388005067,1758959940327,156.21597741,0.00025205,2]
[388005068,1758960004081,500.0,0.00025205,2]
[388005069,1758960004688,500.0,0.00025205,2]
[388005070,1758960032988,198.0,0.00024082,12]
[388005071,1758960040725,200.0,0.00025092,2]
[388005072,1758960055195,1282.78247447,0.00024967,14]
[388005073,1758960150815,4083.2229556,0.00025176,2]
[388005074,1758960170105,326.16042714,0.00025176,2]
[388005075,1758960170127,673.83957286,0.00025176,2]
[388005076,1758960240931,-166.441605,0.00027058,30]
[388005077,1758960272858,654.7127089,0.00025149,2]
[388005079,1758960336821,178.0,9e-07,2]
[388005080,1758960354117,-253.106966,0.00025229,2]
[388005081,1758960354139,-500.0,0.000253,2]
[388005082,1758960354160,-217.7572675,0.00025415,2]
[388005083,1758960354179,-160.0,0.00025514,2]
[388005084,1758960354201,-1500.0,0.00025515,2]
[388005085,1758960354221,-200.0,0.00025664,2]
[388005086,1758960354241,-268.14155307,0.00026235,2]
[388005087,1758960354265,-7.10696369,0.000263,2]
[388005088,1758960376724,167.5081595,0.0001273,2]
[388005090,1758960396943,200.0,0.00021799,2]
[388005091,1758960400611,247.30313652,0.00022671,2]
[388005092,1758960406176,300.0,0.000251,2]
[388005093,1758960408083,300.0,0.000137,2]
[388005094,1758960408593,300.0,0.000137,2]
[388005095,1758960417439,300.0,0.000251,2]
[388005096,1758960419414,300.0,0.000137,2]
[388005097,1758960420174,300.0,0.000137,2]
[388005098,1758960428069,300.0,0.000251,2]
[388005099,1758960431078,-584.22064904,0.00025418,2]
[388005100,1758960431116,300.0,0.000137,2]
[388005101,1758960432286,300.0,0.000137,2]
[388005102,1758960438865,300.0,0.000251,2]
[388005103,1758960442622,300.0,0.000137,2]
[388005104,1758960443915,300.0,0.000137,2]